bitfinex/quotes_BTCUSD_20251230
["timestamp","ask_amount","ask_price","bid_price","bid_amount"]
[1767078907732,0.01142948,87493.0,87486.0,0.0003454]
[1767078908170,0.01144,87494.0,87486.0,0.0003454]
[1767078908368,0.02286935,87494.0,87486.0,0.0003454]
[1767078909049,0.01142948,87493.0,87486.0,0.0003454]
[1767078909252,0.02286935,87494.0,87486.0,0.0003454]
[1767078910091,0.51766539,87500.0,87486.0,0.0003454]
[1767078910301,0.00070372,87517.0,87507.0,0.01142765]
[1767078910502,0.00070372,87517.0,87510.0,0.01142726]
[1767078910724,0.00070372,87517.0,87512.0,0.011427]
[1767078910860,0.00070372,87517.0,87510.0,0.01142726]
[1767078911268,0.00070372,87517.0,87509.0,0.01142739]
[1767078911499,0.00070372,87517.0,87510.0,0.01142726]
[1767078911700,0.00070372,87517.0,87509.0,0.01142739]
[1767078912154,0.00070372,87517.0,87510.0,0.01142726]
[1767078912357,0.00070372,87517.0,87509.0,0.01142739]
[1767078912643,0.00070372,87517.0,87508.0,0.01144]
[1767078913493,0.00070372,87517.0,87508.0,0.02286752]
[1767078913696,0.00070372,87517.0,87508.0,0.01144]
[1767078914901,0.00070372,87517.0,87508.0,0.02286752]
[1767078915081,0.00070372,87517.0,87509.0,0.01142739]
[1767078915308,0.00070372,87517.0,87508.0,0.01142752]
[1767078915987,0.00070372,87517.0,87506.0,0.02286778]
[1767078915988,0.01213007,87517.0,87506.0,0.02286778]
[1767078916183,0.01213007,87517.0,87506.0,0.01144]
[1767078916391,0.01213007,87517.0,87506.0,0.02286778]
[1767078916822,0.01142726,87510.0,87500.0,0.00051103]
[1767078916996,0.01142752,87508.0,87500.0,0.00051103]
[1767078917196,0.01142765,87507.0,87500.0,0.00051103]
[1767078917851,0.01142791,87505.0,87500.0,3e-08]
[1767078918053,0.01142765,87507.0,87500.0,3e-08]
[1767078918255,0.01142791,87505.0,87500.0,3e-08]
[1767078919086,0.01142804,87504.0,87500.0,3e-08]
[1767078919435,0.01142765,87507.0,87504.0,0.00051]
[1767078919645,0.01142648,87516.0,87507.0,0.00051]
[1767078919872,0.01213007,87517.0,87507.0,0.01193765]
[1767078920085,0.00070372,87517.0,87506.0,0.01142778]
[1767078920482,0.01213007,87517.0,87505.0,0.01142791]
[1767078921044,0.01142661,87515.0,87504.0,0.01142804]
[1767078921359,0.06926213,87517.0,87505.0,0.01142791]
[1767078921360,0.01142648,87516.0,87505.0,0.01142791]
[1767078921785,0.01142661,87515.0,87504.0,0.01142804]
[1767078922125,0.01142648,87516.0,87505.0,0.01142791]
[1767078922326,0.00070372,87517.0,87507.0,0.01142765]
[1767078922733,0.00070372,87517.0,87506.0,0.01142778]
[1767078923651,0.00070372,87517.0,87507.0,0.01142765]
[1767078923795,0.01213007,87517.0,87506.0,0.01142778]
[1767078924526,0.01213007,87517.0,87505.0,0.01142791]
[1767078924724,0.01142648,87516.0,87505.0,0.01142791]
[1767078924863,0.01213007,87517.0,87506.0,0.01142778]
[1767078925071,0.01142648,87516.0,87505.0,0.01142791]
[1767078925670,0.01213007,87517.0,87505.0,0.01142791]
[1767078925871,0.00070372,87517.0,87507.0,0.01142765]
[1767078926075,0.00070372,87517.0,87506.0,0.01142778]
[1767078926322,0.01213007,87517.0,87506.0,0.01142778]
[1767078926717,0.00070372,87517.0,87506.0,0.01142778]
[1767078926923,0.01214372,87517.0,87507.0,0.01142765]
[1767078927336,0.02357007,87517.0,87506.0,0.01142778]
[1767078927793,0.01214372,87517.0,87506.0,0.01142778]
[1767078928906,0.02357007,87517.0,87507.0,0.01142765]
[1767078929226,0.01214372,87517.0,87507.0,0.01142765]
[1767078930461,0.01214372,87517.0,87506.0,0.01142778]
[1767078930661,0.01142648,87516.0,87504.0,0.01142804]
[1767078930871,0.01142648,87516.0,87505.0,0.01142791]
[1767078931248,0.01142661,87515.0,87505.0,0.01142791]
[1767078931767,0.02357007,87517.0,87507.0,0.01142765]
[1767078931970,0.02357007,87517.0,87506.0,0.01142778]
[1767078932814,0.01214372,87517.0,87507.0,0.01142765]
[1767078933014,0.01214372,87517.0,87508.0,0.01142752]
[1767078934149,0.01214372,87517.0,87506.0,0.01142778]
[1767078934450,0.01214372,87517.0,87507.0,0.01142765]
[1767078935876,0.02357007,87517.0,87506.0,0.01142778]
[1767078936072,0.02357007,87517.0,87507.0,0.01142765]
[1767078936279,0.01214372,87517.0,87507.0,0.01142765]
[1767078937086,0.01214372,87517.0,87508.0,0.01142752]
[1767078938282,0.01157057,87526.0,87508.0,0.01142752]
[1767078938283,0.03117492,87549.0,87510.0,0.1454]
[1767078938496,0.06764206,87565.0,87510.0,0.1454]
[1767078938497,0.0002,87587.0,87581.0,0.011418]
[1767078938701,0.0002,87587.0,87539.0,1.03533078]
[1767078938702,0.01070214,87586.0,87561.0,0.240554]
[1767078938918,0.14908,87595.0,87576.0,0.52820933]
[1767078939149,0.14908,87595.0,87580.0,0.51679068]
[1767078939364,0.14908,87595.0,87587.0,0.01141721]
[1767078939581,0.14908,87595.0,87581.0,0.011418]
[1767078939582,0.14908,87595.0,87586.0,0.01141734]
[1767078939803,0.14908,87595.0,87587.0,0.01141721]
[1767078940005,0.14908,87595.0,87586.0,0.01141734]
[1767078940245,0.14908,87595.0,87587.0,0.01141721]
[1767078940469,0.01152,87602.0,87588.0,0.05708523]
[1767078940470,0.02293526,87602.0,87588.0,0.05708523]
[1767078940680,0.02293526,87602.0,87582.0,6.6e-07]
[1767078940681,0.01141643,87593.0,87582.0,6.6e-07]
[1767078941108,0.52820724,87592.0,87582.0,6.6e-07]
[1767078941312,0.01141656,87592.0,87582.0,6.6e-07]
[1767078941523,0.01141708,87588.0,87582.0,6.6e-07]
[1767078941758,0.16049826,87579.0,87576.0,2.4e-07]
[1767078942192,0.16049826,87579.0,87568.0,1.4e-07]
[1767078942393,0.1606056,87579.0,87568.0,1.4e-07]
[1767078942664,0.1606056,87579.0,87563.0,0.01142034]
[1767078942665,0.01141943,87570.0,87554.0,0.05710758]
[1767078942872,0.01152,87569.0,87561.0,6e-07]
[1767078944036,0.02293956,87569.0,87561.0,6e-07]
[1767078944435,0.12332498,87565.0,87512.0,0.10229121]
[1767078944638,0.12352498,87565.0,87553.0,4.3e-06]
[1767078945387,0.12352498,87565.0,87556.0,0.01142126]
[1767078945956,0.12352498,87565.0,87557.0,0.01142113]
[1767078946161,0.12352498,87565.0,87556.0,0.01142126]
[1767078946388,0.12352498,87565.0,87557.0,0.01142113]
[1767078946774,0.12352498,87565.0,87556.0,0.01142126]
[1767078946926,0.12352498,87565.0,87557.0,0.01142113]
[1767078947564,0.12352498,87565.0,87555.0,0.01142139]
[1767078947790,0.12352498,87565.0,87554.0,0.01142152]
[1767078948241,0.51679068,87564.0,87553.0,4.3e-06]
[1767078948384,0.51679068,87564.0,87548.0,0.0114223]
[1767078948385,0.01142047,87562.0,87550.0,0.01142204]
[1767078948588,0.01148,87561.0,87550.0,0.01142204]
[1767078948941,0.0229006,87561.0,87550.0,0.51679068]
[1767078949062,0.0229006,87561.0,87549.0,0.01142217]
[1767078949263,0.01148,87561.0,87550.0,0.01142204]
[1767078951617,0.0229006,87561.0,87550.0,0.01142204]
[1767078952184,0.0229006,87561.0,87549.0,0.01142217]
[1767078952987,0.52821142,87560.0,87548.0,0.0114223]
[1767078953315,0.52821142,87560.0,87549.0,0.01142217]
[1767078953518,0.52821142,87560.0,87543.0,0.05711442]
[1767078953667,0.1689706,87561.0,87545.0,0.05731325]
[1767078953867,0.51083159,87560.0,87549.0,0.01142217]
[1767078954050,0.55651159,87560.0,87549.0,0.01142217]
[1767078954452,0.56793233,87560.0,87548.0,0.0114223]
[1767078955702,0.57389142,87560.0,87548.0,0.0114223]
[1767078956963,0.05710074,87560.0,87548.0,0.0114223]
[1767078957162,0.57389142,87560.0,87548.0,0.0114223]
[1767078957566,0.1574893,87571.0,87554.0,0.01142152]
[1767078957866,0.05716,87564.0,87555.0,0.01142139]
[1767078958233,0.01097,87563.0,87554.0,0.05710755]
[1767078958440,0.010421,87563.0,87554.0,0.05710755]
[1767078958645,0.01148,87562.0,87554.0,0.05710755]
[1767078958797,0.01148,87562.0,87556.0,0.01142126]
[1767078959185,0.01148,87562.0,87557.0,0.01142113]
[1767078959549,0.01148,87562.0,87556.0,0.01142126]
[1767078959750,0.01148,87562.0,87557.0,0.01142113]
[1767078959955,0.01148,87562.0,87556.0,0.01142126]
[1767078960163,0.01148,87562.0,87557.0,0.01142113]
[1767078960474,0.01148,87562.0,87556.0,0.01142126]
[1767078960879,0.01148,87562.0,87557.0,0.01142113]
[1767078961083,0.15748969,87568.0,87550.0,0.33445732]
[1767078961301,0.01148,87561.0,87556.0,0.01142126]
[1767078961500,0.01141943,87570.0,87557.0,0.01142113]
[1767078961697,0.52821011,87570.0,87557.0,0.01142113]
[1767078961933,0.05716,87564.0,87557.0,0.01142113]
[1767078962262,0.01141969,87568.0,87556.0,0.01142126]
[1767078962461,0.01148,87563.0,87554.0,0.01142152]
[1767078962664,0.01148,87563.0,87552.0,0.01142178]
[1767078962899,0.01148,87563.0,87553.0,0.01142165]
[1767078963304,0.01148,87563.0,87552.0,0.01142178]
[1767078963684,0.01148,87563.0,87555.0,8e-07]
[1767078964271,0.02290034,87563.0,87551.0,0.01142191]
[1767078964473,0.01148,87563.0,87552.0,0.01142178]
[1767078964876,0.02290034,87563.0,87551.0,0.01142191]
[1767078965099,0.01142047,87562.0,87550.0,0.52821272]
[1767078965355,0.02290034,87563.0,87551.0,0.01142191]
[1767078965738,0.01148,87563.0,87552.0,0.01142178]
[1767078965943,0.01148,87563.0,87551.0,0.01142191]
[1767078965944,0.02290034,87563.0,87551.0,0.01142191]
[1767078966694,0.01148,87563.0,87554.0,0.01142152]
[1767078967039,0.01148,87563.0,87552.0,0.01142178]
[1767078967360,0.05716,87562.0,87553.0,0.04077147]
[1767078967762,0.05716,87562.0,87553.0,0.01142165]
[1767078968195,0.05716,87562.0,87553.0,0.04077147]
[1767078968330,0.05716,87562.0,87557.0,0.04077147]
[1767078968664,0.05716,87562.0,87552.0,0.01142178]
[1767078969236,0.05716,87562.0,87553.0,0.01142165]
[1767078969491,0.05716,87562.0,87554.0,0.01142152]
[1767078969616,0.05716,87562.0,87553.0,0.01142165]
[1767078969818,0.05716,87562.0,87554.0,0.01142152]
[1767078970018,0.05716,87562.0,87556.0,0.01142126]
[1767078971368,0.05716,87562.0,87557.0,0.05885721]
[1767078971748,0.05716,87562.0,87555.0,0.01142139]
[1767078972018,0.05716,87562.0,87548.0,0.05711125]
[1767078972234,0.00055,87555.0,87549.0,0.01142217]
[1767078972405,0.00556405,87554.0,87548.0,0.0114223]
[1767078972630,0.0114206,87561.0,87548.0,0.0114223]
[1767078972963,0.01148,87560.0,87555.0,0.00041105]
[1767078974086,0.011421,87558.0,87555.0,0.00041105]
[1767078974294,0.0114223,87548.0,87545.0,0.0002]
[1767078974498,0.01148,87547.0,87545.0,0.0002]
[1767078975112,0.010931,87547.0,87545.0,0.0002]
[1767078975697,0.010931,87547.0,87540.0,0.01142334]
[1767078976459,0.010931,87547.0,87539.0,0.01142347]
[1767078976666,0.010931,87547.0,87537.0,0.01142374]
[1767078976847,0.010931,87547.0,87540.0,0.01142334]
[1767078977775,0.010931,87547.0,87538.0,0.01142361]
[1767078977982,0.010931,87547.0,87540.0,0.01142334]
[1767078978915,0.010931,87547.0,87539.0,0.01142347]
[1767078979118,0.010931,87547.0,87537.0,0.06890013]
[1767078979119,0.01142295,87543.0,87537.0,0.00035832]
[1767078979301,0.04568,87542.0,87537.0,9.32e-06]
[1767078979624,0.01162243,87547.0,87537.0,9.32e-06]
[1767078979826,0.05716,87546.0,87542.0,0.000549]
[1767078979943,0.0002,87547.0,87537.0,0.01143306]
[1767078980155,0.01148,87545.0,87537.0,9.32e-06]
[1767078981814,0.01142282,87544.0,87537.0,9.32e-06]
[1767078982593,0.01142321,87541.0,87537.0,9.32e-06]
[1767078982973,0.01142308,87542.0,87537.0,9.32e-06]
[1767078982974,0.01142334,87540.0,87537.0,9.32e-06]
[1767078983099,0.01142321,87541.0,87537.0,9.32e-06]
[1767078983299,0.01142321,87541.0,87529.0,0.01142478]
[1767078983300,0.01142321,87541.0,87529.0,0.0113927]
[1767078983499,0.01142334,87540.0,87529.0,0.01175147]
[1767078983721,0.01142334,87540.0,87529.0,0.01178355]
[1767078983926,0.01142321,87541.0,87529.0,0.01178355]
[1767078984149,0.05716,87540.0,87529.0,0.01178355]
[1767078984526,0.01142321,87541.0,87529.0,0.01178355]
[1767078984742,0.01148,87539.0,87529.0,0.01178355]
[1767078984959,0.01148,87539.0,87530.0,0.01142465]
[1767078985133,0.01142308,87542.0,87533.0,0.12332498]
[1767078985328,0.05716,87541.0,87533.0,0.12332498]
[1767078986422,0.01142308,87542.0,87533.0,0.12332498]
[1767078986618,0.01162243,87547.0,87534.0,0.01142413]
[1767078986815,0.0002,87547.0,87538.0,0.06854126]
[1767078987022,0.01142139,87555.0,87547.0,0.000349]
[1767078987268,0.02290152,87554.0,87543.0,0.01142295]
[1767078987404,0.06858152,87554.0,87542.0,0.01142308]
[1767078987808,0.06858152,87554.0,87541.0,0.01142321]
[1767078988044,0.06858152,87554.0,87542.0,0.01142308]
[1767078988298,0.05716,87554.0,87542.0,0.01142308]
[1767078988451,0.06858152,87554.0,87542.0,0.01142308]
[1767078988652,0.05716,87553.0,87542.0,0.01142308]
[1767078988897,0.05716,87553.0,87543.0,0.01142295]
[1767078989094,0.01148,87553.0,87541.0,0.01142321]
[1767078989307,0.05716,87552.0,87541.0,0.01142321]
[1767078989547,0.05716,87552.0,87542.0,0.01142308]
[1767078989889,0.05716,87552.0,87541.0,0.01142321]
[1767078990083,0.01142126,87556.0,87543.0,0.01142295]
[1767078990290,0.01142074,87560.0,87556.0,0.000349]
[1767078990633,0.12568562,87559.0,87556.0,0.000349]
[1767078990835,0.01142126,87556.0,87544.0,0.01142282]
[1767078991033,0.01142113,87557.0,87545.0,0.01142269]
[1767078991398,0.011421,87558.0,87546.0,0.01142256]
[1767078991647,0.01142113,87557.0,87545.0,0.01178146]
[1767078992009,0.01142113,87557.0,87546.0,0.01142256]
[1767078992350,0.01142113,87557.0,87545.0,0.01178146]
[1767078992771,0.01142126,87556.0,87545.0,0.00035877]
[1767078993218,0.01142152,87554.0,87545.0,0.00035877]
[1767078993550,0.01142139,87555.0,87552.0,0.4]
[1767078993753,0.01142139,87555.0,87552.0,0.3998]
[1767078993955,0.01142152,87554.0,87545.0,0.00035877]
[1767078994567,0.06852577,87559.0,87545.0,0.00035877]
[1767078994774,0.01142113,87557.0,87554.0,0.000549]
[1767078994979,0.01142191,87551.0,87545.0,0.00035877]
[1767078995180,0.01148,87550.0,87545.0,0.00035877]
[1767078996701,0.49964123,87545.0,87540.0,0.51679068]
[1767078996933,0.49964123,87545.0,87540.0,0.01178237]
[1767078997361,0.49964123,87545.0,87540.0,0.00035903]
[1767078998156,0.01142295,87543.0,87530.0,0.57808586]
[1767078998362,0.02290308,87542.0,87531.0,0.01142452]
[1767078998540,0.02290308,87542.0,87530.0,0.65296656]
[1767078998738,0.02290308,87542.0,87530.0,0.65288152]
[1767078999216,0.02290308,87542.0,87530.0,0.07263479]
[1767078999423,0.01148,87542.0,87531.0,0.06129518]
[1767078999777,0.01148,87542.0,87532.0,0.01142439]
[1767079000363,0.01148,87542.0,87531.0,0.0727197]
[1767079000559,0.01148,87542.0,87532.0,0.01142439]
[1767079000795,0.06854008,87540.0,87530.0,0.06129518]
[1767079000990,0.01142334,87540.0,87530.0,0.06129518]
[1767079001207,0.01142334,87540.0,87530.0,0.0002857]
[1767079001208,0.01142374,87537.0,87530.0,0.0002857]
[1767079001396,0.011424,87535.0,87530.0,0.0002857]
[1767079001670,0.01142426,87533.0,87530.0,0.0002857]
[1767079001882,0.05712196,87532.0,87530.0,1e-08]
[1767079002493,0.01142426,87533.0,87530.0,1e-08]
[1767079005826,0.0114253,87525.0,87517.0,0.0002583]
[1767079006028,0.01142569,87522.0,87520.0,0.0002]
[1767079006231,0.01142556,87523.0,87520.0,0.0002]
[1767079008551,0.06855356,87523.0,87520.0,0.0002]
[1767079008953,0.01142622,87518.0,87510.0,0.05336002]
[1767079009154,0.02290635,87517.0,87510.0,0.05336002]
[1767079009399,0.04568,87516.0,87510.0,0.05336002]
[1767079010690,0.04603805,87516.0,87510.0,0.05336002]
[1767079012116,0.06855978,87515.0,87510.0,0.05336002]
[1767079012455,0.05746453,87516.0,87510.0,0.05336002]
[1767079012652,0.01142687,87513.0,87507.0,0.00064541]
[1767079012851,0.01142687,87513.0,87501.0,0.0002583]
[1767079012852,0.01142804,87504.0,87501.0,0.0002583]
[1767079013108,0.06862108,87503.0,87501.0,1e-08]
[1767079013311,0.01148,87503.0,87501.0,1e-08]
[1767079014521,0.010931,87503.0,87501.0,1e-08]
[1767079016292,0.06807204,87503.0,87501.0,1e-08]
[1767079016490,0.010931,87503.0,87501.0,1e-08]
[1767079016930,0.05714155,87502.0,87501.0,1e-08]
[1767079020056,0.01143,87489.0,87486.0,0.0004583]
[1767079020252,0.12332498,87487.0,87486.0,0.0004583]
[1767079021292,0.12332498,87487.0,87486.0,0.000328]
[1767079021293,0.12368281,87487.0,87486.0,0.000328]
[1767079022116,0.00035783,87487.0,87486.0,0.000328]
[1767079022309,0.01148,87488.0,87487.0,0.00019217]
[1767079022535,0.01148,87488.0,87487.0,0.00023328]
[1767079022754,0.01148,87488.0,87487.0,4.111e-05]
[1767079022932,0.01083455,87488.0,87487.0,4.111e-05]
[1767079023314,0.01083455,87488.0,87487.0,0.00016911]
[1767079023552,0.01064255,87488.0,87487.0,0.00016911]
[1767079025134,0.01064255,87488.0,87467.0,0.01143288]
[1767079025135,0.01143105,87481.0,87467.0,0.01143288]
[1767079025335,0.01143105,87481.0,87465.0,0.0685984]
[1767079025336,0.01143131,87479.0,87471.0,0.00072823]
[1767079025526,0.01143144,87478.0,87471.0,0.00072823]
[1767079025948,0.01143131,87479.0,87471.0,0.00072823]
[1767079026146,0.01143144,87478.0,87471.0,0.00072823]
[1767079026762,0.01143131,87479.0,87471.0,0.00072823]
[1767079027815,0.01143144,87478.0,87471.0,0.00072823]
[1767079029738,0.01143157,87477.0,87471.0,0.00072823]
[1767079030120,0.06859187,87474.0,87471.0,0.00072823]
[1767079030357,0.01148,87473.0,87471.0,0.00017923]
[1767079031347,0.05716114,87472.0,87471.0,0.00017923]
[1767079031587,0.01148,87473.0,87471.0,0.00017923]
[1767079031950,0.06864108,87473.0,87471.0,0.00017923]
[1767079032300,0.06864108,87473.0,87466.0,0.0004]
[1767079032301,0.01143262,87469.0,87466.0,0.0004]
[1767079032524,0.05716441,87467.0,87466.0,1e-08]
[1767079032723,0.01179048,87469.0,87466.0,1e-08]
[1767079032724,0.06895419,87469.0,87466.0,1e-08]
[1767079033627,0.05716441,87467.0,87466.0,1e-08]
[1767079033948,0.06895419,87469.0,87466.0,1e-08]
[1767079034181,0.05716441,87467.0,87466.0,1e-08]
[1767079034353,0.06895419,87469.0,87466.0,1e-08]
[1767079034587,0.05716441,87467.0,87466.0,1e-08]
[1767079035204,0.11467419,87469.0,87466.0,1e-08]
[1767079035847,0.05751048,87469.0,87466.0,1e-08]
[1767079036030,0.05696148,87469.0,87466.0,1e-08]
[1767079037641,0.04552886,87469.0,87466.0,1e-08]
[1767079038343,0.05696148,87469.0,87466.0,1e-08]
[1767079040473,0.04552886,87469.0,87466.0,1e-08]
[1767079040674,0.05696148,87469.0,87466.0,1e-08]
[1767079040897,0.04552886,87469.0,87466.0,1e-08]
[1767079041106,0.05696148,87469.0,87466.0,1e-08]
[1767079041306,0.04552886,87469.0,87466.0,1e-08]
[1767079041951,0.05696148,87469.0,87466.0,1e-08]
[1767079044219,0.04552886,87469.0,87466.0,1e-08]
[1767079044422,0.05696148,87469.0,87466.0,1e-08]
[1767079048910,0.04552886,87469.0,87466.0,1e-08]
[1767079049431,0.05696148,87469.0,87466.0,1e-08]
[1767079050022,0.04552886,87469.0,87466.0,1e-08]
[1767079050654,0.05696148,87469.0,87466.0,1e-08]
[1767079051250,0.04552886,87469.0,87466.0,1e-08]
[1767079052376,0.05696148,87469.0,87466.0,1e-08]
[1767079052668,0.04552886,87469.0,87466.0,1e-08]
[1767079053034,0.05696148,87469.0,87466.0,1e-08]
[1767079053246,0.04552886,87469.0,87466.0,1e-08]
[1767079053478,0.05696148,87469.0,87466.0,1e-08]
[1767079055068,0.04552886,87469.0,87466.0,1e-08]
[1767079055332,0.05696148,87469.0,87466.0,1e-08]
[1767079062239,0.04552886,87469.0,87466.0,1e-08]
[1767079062661,0.05696148,87469.0,87466.0,1e-08]
[1767079063313,0.04552886,87469.0,87466.0,1e-08]
[1767079063556,0.05696148,87469.0,87466.0,1e-08]
[1767079063939,0.04552886,87469.0,87466.0,1e-08]
[1767079065911,0.05696148,87469.0,87466.0,1e-08]
[1767079067234,0.11412468,87469.0,87466.0,1e-08]
[1767079067390,0.05716434,87468.0,87466.0,1e-08]
[1767079067919,0.01143366,87461.0,87453.0,0.00024326]
[1767079068116,0.02291379,87460.0,87453.0,0.00024326]
[1767079068323,0.01148,87460.0,87453.0,0.00024326]
[1767079068539,0.01143392,87459.0,87453.0,0.00024326]
[1767079068965,0.01148,87460.0,87453.0,0.00024326]
[1767079082911,0.01148,87460.0,87453.0,0.00041316]
[1767079087923,0.01148,87460.0,87453.0,0.01184787]
[1767079088281,0.01148,87460.0,87453.0,0.00041316]
[1767079089587,0.02291379,87460.0,87447.0,0.01143549]
[1767079089810,0.01143458,87454.0,87445.0,0.0002813]
[1767079090034,0.01148,87453.0,87445.0,0.0002813]
[1767079090852,0.0114351,87450.0,87445.0,0.0002813]
[1767079091053,0.01143497,87451.0,87445.0,0.0002813]
[1767079091286,0.02291471,87453.0,87445.0,0.0002813]
[1767079092481,0.01143484,87452.0,87445.0,0.0002813]
[1767079092687,0.01148,87453.0,87445.0,0.0001453]
[1767079095304,0.02291471,87453.0,87445.0,0.0001453]
[1767079096144,0.01143484,87452.0,87445.0,0.0001453]
[1767079096339,0.02291471,87453.0,87445.0,0.0001453]
[1767079100210,0.01148,87453.0,87445.0,0.0001453]
[1767079100394,0.02291471,87453.0,87445.0,0.0001453]
[1767079100984,0.01143484,87452.0,87445.0,0.0001453]
[1767079101178,0.02291471,87453.0,87445.0,0.0001453]
[1767079101621,0.01143484,87452.0,87445.0,0.0001453]
[1767079102395,0.05717814,87446.0,87445.0,0.0001453]
[1767079102639,0.06865814,87446.0,87445.0,0.0001453]
[1767079102879,0.01148,87446.0,87445.0,0.0001453]
[1767079103084,0.06865814,87446.0,87445.0,0.0001453]
[1767079103473,0.01148,87446.0,87445.0,0.0001453]
[1767079107084,0.06865814,87446.0,87445.0,0.0001453]
[1767079108984,0.01143628,87441.0,87428.0,0.0002813]
[1767079109192,0.52965149,87440.0,87428.0,0.0002813]
[1767079109390,0.01148,87439.0,87428.0,0.01171928]
[1767079109571,0.01148,87439.0,87430.0,0.01143772]
[1767079109953,0.01148,87439.0,87431.0,0.01143759]
[1767079110258,0.01148,87439.0,87431.0,0.00035786]
[1767079110708,0.02291654,87439.0,87431.0,0.00035786]
[1767079110880,0.0114368,87437.0,87431.0,0.00035786]
[1767079111093,0.02291654,87439.0,87431.0,0.00035786]
[1767079111296,0.06862015,87438.0,87431.0,0.00035786]
[1767079111501,0.01148,87439.0,87408.0,0.22921168]
[1767079111502,0.01143759,87431.0,87417.0,0.06852456]
[1767079111851,0.01143759,87431.0,87416.0,0.0004]
[1767079111852,0.01143876,87422.0,87416.0,0.0004]
[1767079111980,0.06863243,87423.0,87416.0,0.00035635]
[1767079112185,0.01143902,87420.0,87416.0,0.00035635]
[1767079112394,0.02291916,87419.0,87416.0,0.00016335]
[1767079112601,0.01148,87419.0,87416.0,0.00016335]
[1767079113001,0.01148,87419.0,87416.0,0.00012055]
[1767079114334,0.010931,87419.0,87416.0,0.00012055]
[1767079119124,0.02237016,87419.0,87413.0,0.0004]
[1767079119324,0.01143929,87418.0,87413.0,0.00035616]
[1767079119733,0.01143942,87417.0,87413.0,1.6e-07]
[1767079119935,0.02237016,87419.0,87413.0,1.6e-07]
[1767079120283,0.010931,87419.0,87413.0,1.6e-07]
[1767079120485,0.010931,87419.0,87411.0,0.00024028]
[1767079120888,0.02237016,87419.0,87411.0,0.00024028]
[1767079121372,0.01143929,87418.0,87411.0,0.00024028]
[1767079121508,0.02237016,87419.0,87411.0,0.00024028]
[1767079121509,0.010931,87419.0,87411.0,0.00024028]
[1767079123003,0.02237016,87419.0,87411.0,0.00024028]
[1767079123205,0.010931,87419.0,87411.0,0.00024028]
[1767079124026,0.01143929,87418.0,87411.0,0.00024028]
[1767079124392,0.02237016,87419.0,87411.0,0.00024028]
[1767079125007,0.010931,87419.0,87411.0,0.00024028]
[1767079125218,0.02237016,87419.0,87411.0,0.00024028]
[1767079125708,0.010931,87419.0,87411.0,0.00024028]
[1767079126271,0.01143929,87418.0,87411.0,0.00024028]
[1767079127347,0.01143955,87416.0,87411.0,4.728e-05]
[1767079127495,0.01143942,87417.0,87411.0,4.728e-05]
[1767079127700,0.02237016,87419.0,87416.0,0.3]
[1767079127898,0.02237016,87419.0,87416.0,0.29995878]
[1767079128727,0.010931,87419.0,87416.0,0.29991526]
[1767079130166,0.010382,87419.0,87416.0,0.29991526]
[1767079131339,0.02182116,87419.0,87416.0,0.29936626]
[1767079131570,0.01143929,87418.0,87411.0,4.728e-05]
[1767079131978,0.02182116,87419.0,87411.0,4.728e-05]
[1767079133375,0.010382,87419.0,87411.0,4.728e-05]
[1767079133577,0.009833,87419.0,87411.0,0.01148748]
[1767079133790,0.009833,87419.0,87411.0,4.728e-05]
[1767079135226,0.009833,87419.0,87412.0,0.01144007]
[1767079135442,0.009833,87419.0,87411.0,0.01148748]
[1767079135656,0.009833,87419.0,87411.0,4.728e-05]
[1767079136375,0.009833,87419.0,87411.0,0.01148748]
[1767079136756,0.009833,87419.0,87411.0,4.728e-05]
[1767079137484,0.01143929,87418.0,87411.0,4.728e-05]
[1767079137609,0.02127216,87419.0,87411.0,4.728e-05]
[1767079139344,0.02055734,87419.0,87411.0,4.728e-05]
[1767079139571,0.00911818,87419.0,87411.0,4.728e-05]
[1767079140506,0.01143798,87428.0,87414.0,0.01143981]
[1767079140507,0.0042023,87418.0,87414.0,0.01143981]
[1767079140667,0.0036523,87418.0,87414.0,0.01143981]
[1767079141066,0.0036523,87418.0,87413.0,0.01143994]
[1767079141486,0.0036523,87418.0,87414.0,0.01143981]
[1767079141694,0.0036523,87418.0,87413.0,0.01143994]
[1767079142070,0.01143837,87425.0,87413.0,0.01143994]
[1767079142071,0.01148,87417.0,87413.0,0.01143994]
[1767079142267,0.62179125,87430.0,87413.0,0.01143994]
[1767079142268,0.05754564,87431.0,87413.0,0.06863954]
[1767079142473,0.01143798,87428.0,87415.0,0.01143968]
[1767079142672,0.04611764,87431.0,87421.0,0.01143889]
[1767079142673,0.01148,87427.0,87421.0,0.01143889]
[1767079142875,0.01148,87427.0,87422.0,0.01143876]
[1767079143078,0.01148,87427.0,87423.0,0.01143863]
[1767079143434,0.01148,87427.0,87420.0,0.05719494]
[1767079143435,0.01148,87427.0,87420.0,0.01143902]
[1767079144791,0.01148,87427.0,87419.0,0.01143916]
[1767079145609,0.01148,87427.0,87422.0,0.01143876]
[1767079145812,0.01148,87427.0,87420.0,0.01143902]
[1767079146091,0.01148,87427.0,87421.0,0.01143889]
[1767079146297,0.01148,87427.0,87420.0,0.01143902]
[1767079146489,0.01148,87427.0,87421.0,0.01143889]
[1767079147217,0.01148,87427.0,87422.0,0.01143876]
[1767079147432,0.01148,87427.0,87421.0,0.01143889]
[1767079147632,0.01148,87427.0,87422.0,0.01143876]
[1767079147838,0.01148,87427.0,87423.0,0.01143863]
[1767079148685,0.01148,87427.0,87421.0,0.01143889]
[1767079148839,0.01148,87427.0,87423.0,0.01143863]
[1767079149252,0.01148,87427.0,87425.0,0.01143837]
[1767079149451,0.01148,87427.0,87425.0,0.06862964]
[1767079150411,0.01148,87427.0,87425.0,0.01143837]
[1767079151212,0.01148,87427.0,87424.0,0.0114385]
[1767079152844,0.01148,87430.0,87424.0,0.0114385]
[1767079153045,0.04403943,87439.0,87429.0,0.01143785]
[1767079153260,0.01148,87441.0,87431.0,0.01143759]
[1767079153401,0.01168,87441.0,87430.0,0.01143772]
[1767079153602,0.01168,87441.0,87429.0,0.57607668]
[1767079153603,0.01168,87441.0,87429.0,0.53032538]
[1767079153804,0.01168,87441.0,87431.0,0.01143759]
[1767079154007,0.01168,87441.0,87433.0,0.01143732]
[1767079154272,0.01168,87441.0,87431.0,0.01143759]
[1767079154474,0.01168,87441.0,87433.0,0.01143732]
[1767079154681,0.01168,87441.0,87432.0,0.01143745]
[1767079155083,0.01168,87441.0,87431.0,0.01143759]
[1767079155283,0.01168,87441.0,87432.0,0.01143745]
[1767079155519,0.01168,87441.0,87433.0,0.01143732]
[1767079156103,0.01168,87441.0,87432.0,0.01143745]
[1767079156420,0.01148,87445.0,87435.0,0.01143706]
[1767079156825,0.01148,87445.0,87434.0,0.01143719]
[1767079156980,0.01143589,87444.0,87432.0,0.01143745]
[1767079157187,0.01143589,87444.0,87433.0,0.01143732]
[1767079157386,0.01143589,87444.0,87431.0,0.01143759]